fUST/lending_fUST_20250507
["ID","MTS","AMOUNT","RATE_DAILY","PERIOD"]
[360123323,1746557450659,-400.0,0.00019452,2]
[360123324,1746557450669,-400.0,0.00019452,2]
[360123325,1746557450679,-906.0,0.00019452,2]
[360123326,1746557450689,-488.36,0.00019452,2]
[360123327,1746557450699,-1073.29,0.00019452,2]
[360123328,1746557450709,-537.8,0.00019452,2]
[360123329,1746557450719,-216.6160112,0.00019452,2]
[360123330,1746557450729,-400.0,0.00019452,2]
[360123331,1746557450738,-432.39,0.00019452,2]
[360123332,1746557450748,-400.0,0.00019452,2]
[360123333,1746557450758,-400.0,0.00019452,2]
[360123334,1746557450768,-400.0,0.00019452,2]
[360123335,1746557450778,-400.0,0.00019452,2]
[360123336,1746557450787,-436.88,0.00019452,2]
[360123337,1746557450797,-664.08,0.00019452,2]
[360123338,1746557450807,-721.97,0.00019452,2]
[360123339,1746557450817,-400.0,0.00019452,2]
[360123340,1746557450827,-575.56,0.00019452,2]
[360123341,1746557450837,-400.0,0.00019452,2]
[360123342,1746557450847,-2760.59,0.00019452,2]
[360123343,1746557450857,-400.0,0.00019452,2]
[360123344,1746557450867,-2022.57,0.00019452,2]
[360123345,1746557450876,-400.0,0.00019452,2]
[360123346,1746557450886,-1128.39,0.00019452,2]
[360123347,1746557450896,-400.0,0.00019452,2]
[360123348,1746557450907,-400.0,0.00019452,2]
[360123349,1746557450917,-1875.51,0.00019452,2]
[360123350,1746557450927,-3903.25,0.00019452,2]
[360123351,1746557450937,-400.0,0.00019452,2]
[360123352,1746557450947,-400.0,0.00019452,2]
[360123353,1746557450958,-400.0,0.00019452,2]
[360123354,1746557450968,-400.0,0.00019452,2]
[360123355,1746557450978,-1748.54,0.00019452,2]
[360123356,1746557450988,-1168.25,0.00019452,2]
[360123357,1746557450998,-400.0,0.00019452,2]
[360123358,1746557451009,-4096.88,0.00019452,2]
[360123359,1746557451019,-400.0,0.00019452,2]
[360123360,1746557451030,-400.0,0.00019452,2]
[360123361,1746557451039,-212.38482836,0.00019452,2]
[360123362,1746557451049,-400.0,0.00019452,2]
[360123363,1746557451059,-400.0,0.00019452,2]
[360123364,1746557451070,-406.27990152,0.00019452,2]
[360123365,1746557451080,-1395.58,0.00019452,2]
[360123366,1746557451090,-1182.87,0.00019452,2]
[360123367,1746557451100,-2294.47,0.00019452,2]
[360123368,1746557451110,-433.27,0.00019452,2]
[360123369,1746557451121,-400.0,0.00019452,2]
[360123370,1746557451131,-400.0,0.00019452,2]
[360123371,1746557451141,-400.0,0.00019452,2]
[360123372,1746557451152,-608.14,0.00019452,2]
[360123373,1746557451163,-509.9,0.00019452,2]
[360123374,1746557451173,-860.33,0.00019452,2]
[360123375,1746557451184,-503.74,0.00019452,2]
[360123376,1746557451194,-400.0,0.00019452,2]
[360123377,1746557451204,-520.67,0.00019452,2]
[360123378,1746557451216,-400.0,0.00019452,2]
[360123379,1746557451230,-400.0,0.00019452,2]
[360123380,1746557451241,-400.0,0.00019452,2]
[360123381,1746557451252,-671.0,0.00019452,2]
[360123382,1746557451263,-400.0,0.00019452,2]
[360123383,1746557451273,-429.56,0.00019452,2]
[360123384,1746557451284,-3534.08,0.00019452,2]
[360123385,1746557451294,-400.0,0.00019452,2]
[360123386,1746557451304,-153.88321248,0.00019452,2]
[360123387,1746557451314,-401.2,0.00019452,2]
[360123388,1746557451325,-400.0,0.00019452,2]
[360123389,1746557451334,-400.0,0.00019452,2]
[360123390,1746557451344,-400.0,0.00019452,2]
[360123391,1746557451355,-2599.11,0.00019452,2]
[360123392,1746557451365,-746.25,0.00019452,2]
[360123393,1746557451375,-400.0,0.00019452,2]
[360123394,1746557451385,-400.0,0.00019452,2]
[360123395,1746557451395,-657.42,0.00019452,2]
[360123396,1746557451406,-400.0,0.00019452,2]
[360123397,1746557451417,-405.8713486,0.00019452,2]
[360123398,1746557451428,-400.0,0.00019452,2]
[360123399,1746557451438,-400.0,0.00019452,2]
[360123400,1746557451448,-400.0,0.00019452,2]
[360123401,1746557451458,-400.0,0.00019452,2]
[360123402,1746557451468,-400.0,0.00019452,2]
[360123403,1746557451479,-220.53743959,0.00019452,2]
[360123404,1746557451489,-400.0,0.00019452,2]
[360123405,1746557451498,-18526.28,0.00019452,2]
[360123406,1746557451508,-2332.11,0.00019452,2]
[360123407,1746557451518,-400.0,0.00019452,2]
[360123408,1746557451528,-400.0,0.00019452,2]
[360123409,1746557451538,-2425.66,0.00019452,2]
[360123410,1746557451548,-400.0,0.00019452,2]
[360123411,1746557451557,-400.0,0.00019452,2]
[360123412,1746557451568,-1740.27,0.00019452,2]
[360123413,1746557451577,-400.0,0.00019452,2]
[360123414,1746557451587,-400.0,0.00019452,2]
[360123415,1746557451598,-1937.43,0.00019452,2]
[360123416,1746557451607,-1682.62,0.00019452,2]
[360123417,1746557451617,-491.62,0.00019452,2]
[360123418,1746557451627,-400.0,0.00019452,2]
[360123419,1746557451642,-806.7,0.00019452,2]
[360123420,1746557451653,-588.3,0.00019452,2]
[360123421,1746557451664,-296.88359585,0.00019452,2]
[360123422,1746557451675,-2714.96,0.00019452,2]
[360123423,1746557451686,-400.0,0.00019452,2]
[360123424,1746557451698,-400.0,0.00019452,2]
[360123425,1746557451708,-540.42,0.00019452,2]
[360123426,1746557451718,-427.49,0.00019452,2]
[360123427,1746557451728,-400.0,0.00019452,2]
[360123428,1746557451738,-1413.71,0.00019452,2]
[360123429,1746557451748,-400.0,0.00019452,2]
[360123430,1746557451758,-400.0,0.00019452,2]
[360123431,1746557451768,-8503.73,0.00019452,2]
[360123432,1746557451778,-400.0,0.00019452,2]
[360123433,1746557451791,-400.0,0.00019452,2]
[360123434,1746557451801,-1320.35,0.00019452,2]
[360123435,1746557451933,-400.0,0.00019452,2]
[360123436,1746557451944,-424.32,0.00019452,2]
[360123437,1746557451954,-1419.56,0.00019452,2]
[360123438,1746557451965,-1437.33,0.00019452,2]
[360123439,1746557451975,-448.9042041,0.00019452,2]
[360123440,1746557451984,-7220.36,0.00019452,2]
[360123441,1746557451994,-400.0,0.00019452,2]
[360123442,1746557452003,-2466.48,0.00019452,2]
[360123443,1746557452012,-1256.64,0.00019452,2]
[360123444,1746557452023,-400.0,0.00019452,2]
[360123445,1746557452033,-159.82788455,0.00019452,2]
[360123446,1746557452042,-400.0,0.00019452,2]
[360123447,1746557452053,-400.0,0.00019452,2]
[360123448,1746557452062,-613.52,0.00019452,2]
[360123449,1746557452072,-400.0,0.00019452,2]
[360123450,1746557452082,-547.45027408,0.00019452,2]
[360123451,1746557452091,-400.0,0.00019452,2]
[360123452,1746557452101,-400.0,0.00019452,2]
[360123453,1746557452111,-400.0,0.00019452,2]
[360123454,1746557452120,-2271.69,0.00019452,2]
[360123455,1746557452130,-400.0,0.00019452,2]
[360123456,1746557452139,-669.47,0.00019452,2]
[360123457,1746557452149,-400.0,0.00019452,2]
[360123458,1746557452158,-400.0,0.00019452,2]
[360123459,1746557452168,-400.0,0.00019452,2]
[360123460,1746557452177,-1036.19,0.00019452,2]
[360123461,1746557452186,-8678.79,0.00019452,2]
[360123462,1746557452196,-5456.53,0.00019452,2]
[360123463,1746557452205,-400.0,0.00019452,2]
[360123464,1746557452214,-400.0,0.00019452,2]
[360123465,1746557452227,-401.8274264,0.00019452,2]
[360123466,1746557452236,-1288.43,0.00019452,2]
[360123467,1746557452246,-400.0,0.00019452,2]
[360123468,1746557452255,-430.64,0.00019452,2]
[360123469,1746557452264,-444.19,0.00019452,2]
[360123470,1746557452273,-2069.99,0.00019452,2]
[360123471,1746557452283,-400.0,0.00019452,2]
[360123472,1746557452292,-456.40819459,0.00019546,2]
[360123473,1746557452302,-5000.0,0.00019581,2]
[360123474,1746557452311,-151.0,0.00019725,2]
[360123475,1746557452322,-164.5589,0.00019725,2]
[360123476,1746557452331,-546.0,0.00019726,2]
[360123477,1746557452341,-2241.0,0.00019726,2]
[360123478,1746557452350,-708.0,0.00019726,2]
[360123479,1746557452359,-151.0,0.00019726,2]
[360123480,1746557452369,-151.0,0.00019726,2]
[360123481,1746557452378,-315.551739,0.00019726,2]
[360123482,1746557452387,-315.551739,0.00019726,2]
[360123483,1746557452397,-315.551739,0.00019726,2]
[360123484,1746557452407,-315.551739,0.00019726,2]
[360123485,1746557452416,-151.0,0.00019726,2]
[360123486,1746557452425,-151.0,0.00019726,2]
[360123487,1746557452435,-151.0,0.00019726,2]
[360123488,1746557452445,-151.0,0.00019726,2]
[360123489,1746557452454,-151.0,0.00019726,2]
[360123490,1746557452463,-151.0,0.00019726,2]
[360123491,1746557452473,-353.55320165,0.00019726,2]
[360123492,1746557452483,-400.0,0.00019726,2]
[360123493,1746557452492,-483.6319207,0.00019726,2]
[360123494,1746557452501,-305.23386758,0.00019726,2]
[360123495,1746557452510,-400.0,0.00019726,2]
[360123496,1746557452520,-265.01697814,0.00019726,2]
[360123497,1746557452530,-400.0,0.00019726,2]
[360123498,1746557452539,-400.0,0.00019726,2]
[360123499,1746557452549,-400.0,0.00019726,2]
[360123500,1746557452558,-400.0,0.00019726,2]
[360123501,1746557452570,-506.64979063,0.00019726,2]
[360123502,1746557452579,-400.0,0.00019726,2]
[360123503,1746557452589,-507.88361149,0.00019726,2]
[360123504,1746557452598,-400.0,0.00019726,2]
[360123505,1746557452607,-400.0,0.00019726,2]
[360123506,1746557452617,-400.0,0.00019726,2]
[360123507,1746557452626,-400.0,0.00019726,2]
[360123508,1746557452635,-400.0,0.00019726,2]
[360123509,1746557452645,-400.0,0.00019726,2]
[360123510,1746557452654,-400.0,0.00019726,2]
[360123511,1746557452663,-841.44,0.00019726,2]
[360123512,1746557452673,-400.0,0.00019726,2]
[360123513,1746557452682,-300.0,0.00019726,2]
[360123514,1746557452692,-405.18487035,0.00019726,2]
[360123515,1746557452702,-216.02230012,0.00019726,2]
[360123516,1746557452711,-400.0,0.00019726,2]
[360123517,1746557452721,-159.08597003,0.00019726,2]
[360123518,1746557452730,-405.42983274,0.00019726,2]
[360123519,1746557452740,-400.0,0.00019726,2]
[360123520,1746557452750,-433.90044506,0.00019726,2]
[360123521,1746557452759,-400.0,0.00019726,2]
[360123522,1746557452769,-914.83,0.00019726,2]
[360123523,1746557452778,-400.0,0.00019726,2]
[360123524,1746557452787,-400.0,0.00019726,2]
[360123525,1746557452797,-400.0,0.00019726,2]
[360123526,1746557452806,-400.0,0.00019726,2]
[360123527,1746557452817,-400.0,0.00019726,2]
[360123528,1746557452826,-400.0,0.00019726,2]
[360123529,1746557452835,-400.0,0.00019726,2]
[360123530,1746557452847,-400.0,0.00019726,2]
[360123531,1746557452856,-938.644207,0.00019726,2]
[360123532,1746557452866,-406.98417797,0.00019726,2]
[360123533,1746557452875,-938.644207,0.00019726,2]
[360123534,1746557452884,-400.0,0.00019726,2]
[360123535,1746557452893,-938.644207,0.00019726,2]
[360123536,1746557452902,-872.8,0.00019726,2]
[360123537,1746557452911,-184.47634469,0.00019726,2]
[360123538,1746557452920,-938.644207,0.00019726,2]
[360123539,1746557452930,-400.0,0.00019726,2]
[360123540,1746557452939,-400.0,0.00019726,2]
[360123541,1746557452949,-400.0,0.00019726,2]
[360123542,1746557452958,-400.0,0.00019726,2]
[360123543,1746557452967,-507.36300052,0.00019726,2]
[360123544,1746557452976,-400.0,0.00019726,2]
[360123545,1746557452986,-527.85,0.00019726,2]
[360123546,1746557452995,-505.88744094,0.00019726,2]
[360123547,1746557453006,-965.04,0.00019726,2]
[360123548,1746557453015,-400.0,0.00019726,2]
[360123549,1746557453023,-207.91331693,0.00019726,2]
[360123550,1746557453032,-400.0,0.00019726,2]
[360123551,1746557453042,-214.0298498,0.00019726,2]
[360123552,1746557453051,-534.31,0.00019726,2]
[360123553,1746557453060,-400.0,0.00019726,2]
[360123554,1746557453069,-181.79618577,0.00019726,2]
[360123555,1746557453077,-1626.9,0.00019726,2]
[360123556,1746557453085,-408.15236333,0.00019726,2]
[360123557,1746557453093,-1245.64,0.00019726,2]
[360123558,1746557453101,-400.0,0.00019726,2]
[360123559,1746557453109,-315.6133293,0.00019726,2]
[360123560,1746557453117,-500.0,0.00019726,2]
[360123561,1746557453126,-400.0,0.00019726,2]
[360123562,1746557453134,-400.0,0.00019726,2]
[360123563,1746557453143,-400.0,0.00019726,2]
[360123564,1746557453152,-400.0,0.00019726,2]
[360123565,1746557453160,-921.13,0.00019726,2]
[360123566,1746557453169,-400.0,0.00019726,2]
[360123567,1746557453178,-400.0,0.00019726,2]
[360123568,1746557453187,-1828.59,0.00019726,2]
[360123569,1746557453196,-400.0,0.00019726,2]
[360123570,1746557453205,-400.0,0.00019726,2]
[360123571,1746557453213,-400.0,0.00019726,2]
[360123572,1746557453226,-400.0,0.00019726,2]
[360123573,1746557453236,-1369.35,0.00019726,2]
[360123574,1746557453245,-400.0,0.00019726,2]
[360123575,1746557453254,-400.0,0.00019726,2]
[360123576,1746557453265,-400.0,0.00019726,2]
[360123577,1746557453274,-400.0,0.00019726,2]
[360123578,1746557453283,-400.0,0.00019726,2]
[360123579,1746557453294,-200.03699063,0.00019726,2]
[360123580,1746557453303,-560.92,0.00019726,2]
[360123581,1746557453313,-400.0,0.00019726,2]
[360123582,1746557453323,-809.46,0.00019726,2]
[360123583,1746557453332,-400.0,0.00019726,2]
[360123584,1746557453341,-598.99,0.00019726,2]
[360123585,1746557453351,-983.98,0.00019726,2]
[360123586,1746557453360,-400.0,0.00019726,2]
[360123587,1746557453369,-400.0,0.00019726,2]
[360123588,1746557453379,-2816.44,0.00019726,2]
[360123589,1746557453388,-400.0,0.00019726,2]
[360123590,1746557453398,-455.08,0.00019726,2]
[360123591,1746557453407,-400.0,0.00019726,2]
[360123592,1746557453416,-560.8,0.00019726,2]
[360123593,1746557453426,-400.0,0.00019726,2]
[360123594,1746557453435,-400.0,0.00019726,2]
[360123595,1746557453444,-545.57609247,0.00019726,2]
[360123596,1746557453453,-583.38,0.00019726,2]
[360123597,1746557453463,-400.0,0.00019726,2]
[360123598,1746557453472,-400.0,0.00019726,2]
[360123599,1746557453482,-615.86,0.00019726,2]
[360123600,1746557453491,-400.0,0.00019726,2]
[360123601,1746557453501,-400.0,0.00019726,2]
[360123602,1746557453510,-400.0,0.00019726,2]
[360123603,1746557453520,-400.0,0.00019726,2]
[360123604,1746557453529,-400.0,0.00019726,2]
[360123605,1746557453538,-423.37,0.00019726,2]
[360123606,1746557453547,-400.0,0.00019726,2]
[360123607,1746557453557,-400.0,0.00019726,2]
[360123608,1746557453567,-400.0,0.00019726,2]
[360123609,1746557453576,-400.78,0.00019726,2]
[360123610,1746557453586,-400.0,0.00019726,2]
[360123611,1746557453595,-881.87,0.00019726,2]
[360123612,1746557453604,-400.0,0.00019726,2]
[360123613,1746557453614,-400.0,0.00019726,2]
[360123614,1746557453622,-420.22,0.00019726,2]
[360123615,1746557453632,-1675.86,0.00019726,2]
[360123616,1746557453642,-400.0,0.00019726,2]
[360123617,1746557453652,-400.0,0.00019726,2]
[360123618,1746557453661,-400.0,0.00019726,2]
[360123619,1746557453671,-400.0,0.00019726,2]
[360123620,1746557453680,-1264.81,0.00019726,2]
[360123621,1746557453689,-525.26858255,0.00019726,2]
[360123622,1746557453699,-400.0,0.00019726,2]
[360123623,1746557453708,-400.0,0.00019726,2]
[360123624,1746557453718,-400.0,0.00019726,2]
[360123625,1746557453728,-5043.3,0.00019726,2]
[360123626,1746557453739,-400.0,0.00019726,2]
[360123627,1746557453748,-400.0,0.00019726,2]
[360123628,1746557453757,-400.0,0.00019726,2]
[360123629,1746557453766,-400.0,0.00019726,2]
[360123630,1746557453775,-400.48,0.00019726,2]
[360123631,1746557453785,-400.0,0.00019726,2]
[360123632,1746557453794,-577.59,0.00019726,2]
[360123633,1746557453803,-400.0,0.00019726,2]
[360123634,1746557453812,-1061.8,0.00019726,2]
[360123635,1746557453821,-400.0,0.00019726,2]
[360123636,1746557453830,-410.68,0.00019726,2]
[360123637,1746557453839,-400.0,0.00019726,2]
[360123638,1746557453848,-400.0,0.00019726,2]
[360123639,1746557453858,-1000.0,0.00019726,2]
[360123640,1746557453867,-425.5,0.00019726,2]
[360123641,1746557453876,-400.0,0.00019726,2]
[360123642,1746557453886,-400.0,0.00019726,2]
[360123643,1746557453895,-400.0,0.00019726,2]
[360123644,1746557453904,-400.0,0.00019726,2]
[360123645,1746557453913,-1199.18,0.00019726,2]
[360123646,1746557453923,-400.0,0.00019726,2]
[360123647,1746557453932,-358.0,0.00019726,2]
[360123648,1746557453942,-803.28,0.00019726,2]
[360123649,1746557453951,-400.0,0.00019726,2]
[360123650,1746557453960,-400.0,0.00019726,2]
[360123651,1746557453969,-3231.45,0.00019726,2]
[360123652,1746557453978,-695.64,0.00019726,2]
[360123653,1746557453987,-400.0,0.00019726,2]
[360123654,1746557453997,-1123.43,0.00019726,2]
[360123655,1746557454006,-1606.23,0.00019726,2]
[360123656,1746557454015,-400.0,0.00019726,2]
[360123657,1746557454024,-400.0,0.00019726,2]
[360123658,1746557454033,-400.0,0.00019726,2]
[360123659,1746557454043,-400.0,0.00019726,2]
[360123660,1746557454052,-409.00279527,0.00019726,2]
[360123661,1746557454061,-400.0,0.00019726,2]
[360123662,1746557454070,-400.0,0.00019726,2]
[360123663,1746557454079,-468.18,0.00019726,2]
[360123664,1746557454089,-1514.26,0.00019726,2]
[360123665,1746557454098,-400.0,0.00019726,2]
[360123666,1746557454107,-400.0,0.00019726,2]
[360123667,1746557454116,-820.43,0.00019726,2]
[360123668,1746557454125,-894.49,0.00019726,2]
[360123669,1746557454134,-400.0,0.00019726,2]
[360123670,1746557454144,-422.16,0.00019726,2]
[360123671,1746557454153,-524.57,0.00019726,2]
[360123672,1746557454162,-400.0,0.00019726,2]
[360123673,1746557454171,-400.0,0.00019726,2]
[360123674,1746557454180,-400.0,0.00019726,2]
[360123675,1746557454191,-799.54,0.00019726,2]
[360123676,1746557454200,-1564.06,0.00019726,2]
[360123677,1746557454210,-5396.79,0.00019726,2]
[360123678,1746557454222,-400.0,0.00019726,2]
[360123679,1746557454232,-400.0,0.00019726,2]
[360123680,1746557454243,-400.0,0.00019726,2]
[360123681,1746557454253,-413.88,0.00019726,2]
[360123682,1746557454262,-529.91430435,0.00019726,2]
[360123683,1746557454271,-526.76559724,0.00019726,2]
[360123684,1746557454281,-400.0,0.00019726,2]
[360123685,1746557454290,-400.0,0.00019726,2]
[360123686,1746557454414,-400.0,0.00019726,2]
[360123687,1746557454424,-400.0,0.00019726,2]
[360123688,1746557454435,-452.25804862,0.00019726,2]
[360123689,1746557454444,-400.0,0.00019726,2]
[360123690,1746557454454,-400.0,0.00019726,2]
[360123691,1746557454464,-400.0,0.00019726,2]
[360123692,1746557454473,-400.0,0.00019726,2]
[360123693,1746557454483,-400.0,0.00019726,2]
[360123694,1746557454492,-171.66772179,0.00019726,2]
[360123695,1746557454502,-400.0,0.00019726,2]
[360123696,1746557454511,-516.42,0.00019726,2]
[360123697,1746557454521,-400.0,0.00019726,2]
[360123698,1746557454530,-400.0,0.00019726,2]
[360123699,1746557454540,-647.06,0.00019726,2]
[360123700,1746557454549,-400.0,0.00019726,2]
[360123701,1746557454559,-400.0,0.00019726,2]
[360123702,1746557454569,-475.39,0.00019726,2]
[360123703,1746557454579,-400.0,0.00019726,2]
[360123704,1746557454588,-412.38201439,0.00019726,2]
[360123705,1746557454598,-400.0,0.00019726,2]
[360123706,1746557454607,-400.0,0.00019726,2]
[360123707,1746557454617,-400.0,0.00019726,2]
[360123708,1746557454626,-400.0,0.00019726,2]
[360123709,1746557454635,-413.38101009,0.00019726,2]
[360123710,1746557454645,-400.0,0.00019726,2]
[360123711,1746557454656,-400.0,0.00019726,2]
[360123712,1746557454665,-400.0,0.00019726,2]
[360123713,1746557454674,-507.45,0.00019726,2]
[360123714,1746557454684,-400.0,0.00019726,2]
[360123715,1746557454694,-408.41553255,0.00019726,2]
[360123716,1746557454703,-677.81,0.00019726,2]
[360123717,1746557454713,-400.0,0.00019726,2]
[360123718,1746557454723,-400.0,0.00019726,2]
[360123719,1746557454734,-1471.28,0.00019726,2]
[360123720,1746557454745,-2448.34,0.00019726,2]
[360123721,1746557454757,-785.96,0.00019726,2]
[360123722,1746557454768,-400.0,0.00019726,2]
[360123723,1746557454779,-535.02,0.00019726,2]
[360123724,1746557454788,-1037.49480534,0.00019726,2]
[360123725,1746557454798,-400.0,0.00019726,2]
[360123726,1746557454807,-400.0,0.00019726,2]
[360123727,1746557454817,-714.49,0.00019726,2]
[360123728,1746557454827,-406.24881749,0.00019726,2]
[360123729,1746557454836,-426.10736865,0.00019726,2]
[360123730,1746557454848,-400.0,0.00019726,2]
[360123731,1746557454859,-400.0,0.00019726,2]
[360123732,1746557454868,-400.0,0.00019726,2]
[360123733,1746557454878,-400.0,0.00019726,2]
[360123734,1746557454887,-3107.34,0.00019726,2]
[360123735,1746557454896,-2348.88,0.00019726,2]
[360123736,1746557454906,-400.0,0.00019726,2]
[360123737,1746557454915,-400.0,0.00019726,2]
[360123738,1746557454924,-585.78,0.00019726,2]
[360123739,1746557454934,-421.00085836,0.00019726,2]
[360123740,1746557454944,-399.50099296,0.00019726,2]
[360123741,1746557454954,-400.0,0.00019726,2]
[360123742,1746557454963,-408.58372012,0.00019726,2]
[360123743,1746557454973,-293.00261871,0.00019726,2]
[360123744,1746557454983,-402.19121217,0.00019726,2]
[360123745,1746557454996,-400.0,0.00019726,2]
[360123746,1746557455005,-858.84,0.00019726,2]
[360123747,1746557455015,-400.0,0.00019726,2]
[360123748,1746557455026,-384.58497593,0.00019726,2]
[360123749,1746557455036,-281.40802,0.00019726,2]
[360123750,1746557455047,-408.05559619,0.00019726,2]
[360123751,1746557455058,-1451.93,0.00019726,2]
[360123752,1746557455067,-400.0,0.00019726,2]
[360123753,1746557455077,-400.0,0.00019726,2]
[360123754,1746557455086,-663.81,0.00019726,2]
[360123755,1746557455095,-400.0,0.00019726,2]
[360123756,1746557455104,-517.09235961,0.00019726,2]
[360123757,1746557455115,-400.0,0.00019726,2]
[360123758,1746557455126,-3486.01,0.00019726,2]
[360123759,1746557455136,-400.0,0.00019726,2]
[360123760,1746557455146,-400.0,0.00019726,2]
[360123761,1746557455155,-1295.66,0.00019726,2]
[360123762,1746557455165,-400.0,0.00019726,2]
[360123763,1746557455175,-407.61349436,0.00019726,2]
[360123764,1746557455184,-400.0,0.00019726,2]
[360123765,1746557455193,-400.0,0.00019726,2]
[360123766,1746557455202,-400.0,0.00019726,2]
[360123767,1746557455211,-659.74,0.00019726,2]
[360123768,1746557455224,-1658.25,0.00019726,2]
[360123769,1746557455234,-409.58833829,0.00019726,2]
[360123770,1746557455243,-151.0,0.00019726,2]
[360123771,1746557455253,-1364.2,0.00019726,2]
[360123772,1746557455263,-194.42986948,0.00019726,2]
[360123773,1746557455272,-500.0,0.00019726,2]
[360123774,1746557455281,-400.0,0.00019726,2]
[360123775,1746557455290,-1688.98,0.00019726,2]
[360123776,1746557455300,-1573.38,0.00019726,2]
[360123777,1746557455309,-386.24297431,0.00019726,2]
[360123778,1746557455319,-400.0,0.00019726,2]
[360123779,1746557455328,-536.65009703,0.00019726,2]
[360123780,1746557455338,-400.0,0.00019726,2]
[360123781,1746557455347,-906.0,0.00019726,2]
[360123782,1746557455357,-488.36,0.00019726,2]
[360123783,1746557455367,-1073.29,0.00019726,2]
[360123784,1746557455377,-537.8,0.00019726,2]
[360123785,1746557455386,-155.0,0.00019726,2]
[360123786,1746557455395,-400.0,0.00019726,2]
[360123787,1746557455405,-432.39,0.00019726,2]
[360123788,1746557455414,-521.55089277,0.00019726,2]
[360123789,1746557455423,-371.67760288,0.00019726,2]
[360123790,1746557455433,-400.0,0.00019726,2]
[360123791,1746557455442,-400.0,0.00019726,2]
[360123792,1746557455451,-436.88,0.00019726,2]
[360123793,1746557455461,-664.08,0.00019726,2]
[360123794,1746557455471,-721.97,0.00019726,2]
[360123795,1746557455481,-400.0,0.00019726,2]
[360123796,1746557455490,-575.56,0.00019726,2]
[360123797,1746557455499,-400.0,0.00019726,2]
[360123798,1746557455509,-2760.59,0.00019726,2]
[360123799,1746557455518,-400.0,0.00019726,2]
[360123800,1746557455527,-2022.57,0.00019726,2]
[360123801,1746557455537,-507.98636629,0.00019726,2]
[360123802,1746557455547,-1128.39,0.00019726,2]
[360123803,1746557455557,-400.0,0.00019726,2]
[360123804,1746557455567,-400.0,0.00019726,2]
[360123805,1746557455578,-1875.51,0.00019726,2]
[360123806,1746557455588,-3903.25,0.00019726,2]
[360123807,1746557455598,-400.0,0.00019726,2]
[360123808,1746557455608,-400.0,0.00019726,2]
[360123809,1746557455618,-400.0,0.00019726,2]
[360123810,1746557455633,-400.0,0.00019726,2]
[360123811,1746557455642,-1748.54,0.00019726,2]
[360123812,1746557455652,-1168.25,0.00019726,2]
[360123813,1746557455663,-152.884301,0.00019726,2]
[360123814,1746557455673,-400.0,0.00019726,2]
[360123815,1746557455682,-4096.88,0.00019726,2]
[360123816,1746557455692,-400.0,0.00019726,2]
[360123817,1746557455702,-400.0,0.00019726,2]
[360123818,1746557455712,-408.25513853,0.00019726,2]
[360123819,1746557455722,-400.0,0.00019726,2]
[360123820,1746557455731,-1395.58,0.00019726,2]
[360123821,1746557455741,-1182.87,0.00019726,2]
[360123822,1746557455751,-2294.47,0.00019726,2]